fUSD/lending_fUSD_20260123
["ID","MTS","AMOUNT","RATE_DAILY","PERIOD"]
[403135469,1769184638378,-1203.21792498,0.00016338,2]
[403135471,1769184638388,-1203.21792498,0.00016338,2]
[403135473,1769184638397,-1203.21792498,0.00016338,2]
[403135475,1769184638407,-1203.21792498,0.00016338,2]
[403135477,1769184638417,-1203.21792498,0.00016338,2]
[403135479,1769184638427,-1203.21792498,0.00016338,2]
[403135481,1769184638436,-1203.21792498,0.00016338,2]
[403135483,1769184638446,-1203.21792498,0.00016338,2]
[403135485,1769184638455,-1173.13747686,0.00016338,2]
[403135487,1769184638464,-1173.13747686,0.00016338,2]
[403135489,1769184638474,-1173.13747686,0.00016338,2]
[403135491,1769184638484,-1173.13747686,0.00016338,2]
[403135493,1769184638494,-1173.13747686,0.00016338,2]
[403135495,1769184638503,-1173.13747686,0.00016338,2]
[403135497,1769184638513,-1173.13747686,0.00016338,2]
[403135499,1769184638522,-1173.13747686,0.00016338,2]
[403135501,1769184638533,-1173.13747686,0.00016338,2]
[403135503,1769184638542,-1173.13747686,0.00016338,2]
[403135505,1769184638551,-1173.13747686,0.00016338,2]
[403135507,1769184638561,-1173.13747686,0.00016338,2]
[403135509,1769184638571,-1173.13747686,0.00016338,2]
[403135512,1769184638580,-1173.13747686,0.00016338,2]
[403135514,1769184638590,-1173.13747686,0.00016338,2]
[403135516,1769184638600,-1173.13747686,0.00016338,2]
[403135517,1769184638609,-1173.13747686,0.00016338,2]
[403135519,1769184638618,-1173.13747686,0.00016338,2]
[403135521,1769184638628,-1173.13747686,0.00016338,2]
[403135522,1769184638637,-1173.13747686,0.00016338,2]
[403135524,1769184638647,-1173.13747686,0.00016338,2]
[403135526,1769184638656,-1173.13747686,0.00016338,2]
[403135528,1769184638666,-1173.13747686,0.00016338,2]
[403135529,1769184638676,-1173.13747686,0.00016338,2]
[403135530,1769184638688,-1173.13747686,0.00016338,2]
[403135531,1769184638698,-1173.13747686,0.00016338,2]
[403135532,1769184638708,-1173.13747686,0.00016338,2]
[403135533,1769184638719,-1173.13747686,0.00016338,2]
[403135534,1769184638728,-1173.13747686,0.00016338,2]
[403135535,1769184638738,-1173.13747686,0.00016338,2]
[403135536,1769184638748,-1270.89893325,0.00016338,2]
[403135537,1769184638758,-1270.89893325,0.00016338,2]
[403135538,1769184638767,-1270.89893325,0.00016338,2]
[403135539,1769184638778,-1270.89893325,0.00016338,2]
[403135540,1769184638788,-1270.89893325,0.00016338,2]
[403135541,1769184638798,-1270.89893325,0.00016338,2]
[403135542,1769184638808,-1270.89893325,0.00016338,2]
[403135543,1769184638819,-1270.89893325,0.00016338,2]
[403135544,1769184638830,-691.75,0.00016338,2]
[403135545,1769184638840,-1000.0,0.00016339,2]
[403135546,1769184638850,-6226.74,0.00016342,2]
[403135547,1769184638859,-152.32567294,0.0001636,2]
[403135548,1769184638873,-6226.74,0.00016385,2]
[403135549,1769184638883,-3112.00948145,0.00016413,2]
[403135550,1769184638892,-6226.74,0.00016428,2]
[403135551,1769184638902,-500.0,0.00016438,2]
[403135552,1769184638912,-500.0,0.00016438,2]
[403135553,1769184638921,-220.45180996,0.00016438,2]
[403135554,1769184638931,-500.0,0.00016438,2]
[403135555,1769184638941,-151.0,0.00016438,2]
[403135556,1769184638950,-3401.64,0.00016439,2]
[403135557,1769184638960,-845.0,0.00016459,2]
[403135558,1769184638969,-613.51,0.0001646,2]
[403135559,1769184638980,-6226.74,0.0001647,2]
[403135560,1769184638991,-414.0,0.00016513,2]
[403135561,1769184639001,-6226.74,0.00016513,2]
[403135562,1769184639011,-474.0,0.00016526,2]
[403135563,1769184639020,-451.0,0.00016546,2]
[403135564,1769184639029,-6226.74,0.00016556,2]
[403135565,1769184639039,-3112.00948139,0.00016578,2]
[403135566,1769184639048,-294.0,0.00016579,2]
[403135567,1769184639058,-6226.74,0.00016599,2]
[403135568,1769184639067,-691.75,0.00016612,2]
[403135569,1769184639076,-6226.74,0.00016642,2]
[403135570,1769184639085,-6226.74,0.00016685,2]
[403135571,1769184639093,-6226.74,0.00016728,2]
[403135572,1769184639102,-3112.00948139,0.00016743,2]
[403135573,1769184639111,-6226.74,0.00016771,2]
[403135574,1769184639120,-6226.74,0.00016814,2]
[403135575,1769184639129,-6226.74,0.00016857,2]
[403135576,1769184639139,-39028.4,0.00016859,2]
[403135577,1769184639147,-691.75,0.00016886,2]
[403135578,1769184639157,-6226.74,0.00016899,2]
[403135579,1769184639166,-3112.00948139,0.00016909,2]
[403135580,1769184639175,-6226.74,0.00016942,2]
[403135581,1769184639184,-6226.74,0.00016985,2]
[403135582,1769184639193,-250.0,0.00017,2]
[403135583,1769184639201,-6226.74,0.00017028,2]
[403135584,1769184639211,-1677.0,0.00017058,2]
[403135585,1769184639220,-6226.74,0.00017071,2]
[403135586,1769184639229,-3112.00948139,0.00017074,2]
[403135587,1769184639239,-6226.74,0.00017114,2]
[403135588,1769184639248,-1677.0,0.00017139,2]
[403135589,1769184639257,-691.75,0.0001716,2]
[403135590,1769184639266,-1677.0,0.00017179,2]
[403135591,1769184639275,-3112.00948139,0.00017239,2]
[403135592,1769184639285,-1677.0,0.00017241,2]
[403135593,1769184639294,-1677.0,0.00017247,2]
[403135594,1769184639303,-1201.93776232,0.00017251,2]
[403135595,1769184639313,-613.51,0.00017283,2]
[403135596,1769184639322,-1201.93776223,0.00017323,2]
[403135597,1769184639331,-1677.0,0.00017342,2]
[403135598,1769184639340,-322.6107,0.00017351,2]
[403135599,1769184639350,-500.0,0.00017351,2]
[403135600,1769184639359,-854.2589148,0.00017351,2]
[403135601,1769184639369,-250.0,0.00017351,2]
[403135602,1769184639378,-500.0,0.00017351,2]
[403135604,1769184639732,-250.0,0.00017351,2]
[403135605,1769184639743,-500.0,0.00017351,2]
[403135606,1769184639753,-500.0,0.00017351,2]
[403135607,1769184639764,-250.0,0.00017351,2]
[403135608,1769184639773,-578.20924308,0.00017351,2]
[403135609,1769184639783,-500.0,0.00017351,2]
[403135610,1769184639792,-250.0,0.00017351,2]
[403135611,1769184639802,-500.0,0.00017351,2]
[403135612,1769184639812,-500.0,0.00017351,2]
[403135613,1769184639821,-250.0,0.00017351,2]
[403135614,1769184639831,-500.0,0.00017351,2]
[403135615,1769184639840,-500.0,0.00017351,2]
[403135616,1769184639849,-250.0,0.00017351,2]
[403135617,1769184639858,-500.0,0.00017351,2]
[403135618,1769184639867,-500.0,0.00017351,2]
[403135619,1769184639878,-250.0,0.00017351,2]
[403135620,1769184639888,-500.0,0.00017351,2]
[403135621,1769184639899,-500.0,0.00017351,2]
[403135622,1769184639909,-250.0,0.00017351,2]
[403135623,1769184639920,-500.0,0.00017351,2]
[403135624,1769184639930,-500.0,0.00017351,2]
[403135625,1769184639940,-250.0,0.00017351,2]
[403135626,1769184639950,-500.0,0.00017351,2]
[403135627,1769184639959,-500.0,0.00017351,2]
[403135628,1769184639968,-250.0,0.00017351,2]
[403135629,1769184639978,-500.0,0.00017351,2]
[403135630,1769184639987,-250.0,0.00017351,2]
[403135631,1769184639998,-500.0,0.00017351,2]
[403135632,1769184640007,-500.0,0.00017351,2]
[403135633,1769184640017,-209.40437684,0.00017351,2]
[403135634,1769184640027,-500.0,0.00017351,2]
[403135635,1769184640036,-500.0,0.00017351,2]
[403135636,1769184640045,-250.0,0.00017351,2]
[403135637,1769184640054,-250.0,0.00017351,2]
[403135638,1769184640063,-250.0,0.00017351,2]
[403135639,1769184640073,-250.0,0.00017351,2]
[403135640,1769184640082,-250.0,0.00017351,2]
[403135641,1769184640091,-250.0,0.00017351,2]
[403135642,1769184640102,-250.0,0.00017351,2]
[403135643,1769184640111,-250.0,0.00017351,2]
[403135644,1769184640120,-263.31471796,0.00017351,2]
[403135645,1769184640129,-250.0,0.00017351,2]
[403135646,1769184640138,-250.0,0.00017351,2]
[403135647,1769184640147,-250.0,0.00017351,2]
[403135648,1769184640157,-250.0,0.00017351,2]
[403135649,1769184640166,-250.0,0.00017351,2]
[403135650,1769184640175,-329.2713654,0.00017351,2]
[403135651,1769184640184,-250.0,0.00017351,2]
[403135652,1769184640193,-174.61919141,0.00017351,2]
[403135653,1769184640202,-250.0,0.00017351,2]
[403135654,1769184640211,-250.0,0.00017351,2]
[403135655,1769184640221,-250.0,0.00017351,2]
[403135656,1769184640230,-250.0,0.00017351,2]
[403135657,1769184640240,-250.0,0.00017351,2]
[403135658,1769184640249,-250.0,0.00017351,2]
[403135659,1769184640259,-250.0,0.00017351,2]
[403135660,1769184640270,-250.0,0.00017351,2]
[403135661,1769184640280,-250.0,0.00017351,2]
[403135662,1769184640290,-250.0,0.00017351,2]
[403135663,1769184640299,-250.0,0.00017351,2]
[403135664,1769184640309,-250.0,0.00017351,2]
[403135665,1769184640318,-250.0,0.00017351,2]
[403135666,1769184640327,-250.0,0.00017351,2]
[403135667,1769184640337,-250.0,0.00017351,2]
[403135668,1769184640347,-151.0,0.00017351,2]
[403135669,1769184640357,-250.0,0.00017351,2]
[403135670,1769184640367,-250.0,0.00017351,2]
[403135671,1769184640376,-151.0,0.00017351,2]
[403135672,1769184640385,-250.0,0.00017351,2]
[403135673,1769184640394,-151.0,0.00017351,2]
[403135674,1769184640403,-250.0,0.00017351,2]
[403135675,1769184640412,-303.1714215,0.00017351,2]
[403135676,1769184640421,-250.0,0.00017351,2]
[403135677,1769184640431,-151.0,0.00017351,2]
[403135678,1769184640440,-250.0,0.00017351,2]
[403135679,1769184640449,-250.0,0.00017351,2]
[403135680,1769184640458,-151.0,0.00017351,2]
[403135681,1769184640467,-250.0,0.00017351,2]
[403135682,1769184640479,-250.0,0.00017351,2]
[403135683,1769184640490,-151.0,0.00017351,2]
[403135684,1769184640499,-250.0,0.00017351,2]
[403135685,1769184640508,-151.0,0.00017351,2]
[403135686,1769184640517,-250.0,0.00017351,2]
[403135687,1769184640527,-151.0,0.00017351,2]
[403135688,1769184640537,-250.0,0.00017351,2]
[403135689,1769184640547,-151.0,0.00017351,2]
[403135691,1769184640557,-250.0,0.00017351,2]
[403135692,1769184640566,-151.0,0.00017351,2]
[403135694,1769184640575,-151.0,0.00017351,2]
[403135696,1769184640584,-250.0,0.00017351,2]
[403135697,1769184640594,-2468.0,0.00017351,2]
[403135698,1769184640604,-151.0,0.00017351,2]
[403135699,1769184640613,-250.0,0.00017351,2]
[403135700,1769184640623,-151.0,0.00017351,2]
[403135701,1769184640632,-2324.64294723,0.00017351,2]
[403135702,1769184640641,-500.0,0.00017351,2]
[403135703,1769184640651,-500.0,0.00017351,2]
[403135704,1769184640661,-500.0,0.00017351,2]
[403135705,1769184640670,-500.0,0.00017351,2]
[403135706,1769184640681,-500.0,0.00017351,2]
[403135707,1769184640693,-500.0,0.00017351,2]
[403135708,1769184640703,-500.0,0.00017351,2]
[403135709,1769184640713,-500.0,0.00017351,2]
[403135710,1769184640723,-500.0,0.00017351,2]
[403135711,1769184640733,-500.0,0.00017351,2]
[403135712,1769184640742,-500.0,0.00017351,2]
[403135713,1769184640752,-500.0,0.00017351,2]
[403135714,1769184640763,-500.0,0.00017351,2]
[403135715,1769184640773,-500.0,0.00017351,2]
[403135716,1769184640783,-500.0,0.00017351,2]
[403135717,1769184640792,-500.0,0.00017351,2]
[403135718,1769184640802,-500.0,0.00017351,2]
[403135719,1769184640811,-500.0,0.00017351,2]
[403135720,1769184640820,-500.0,0.00017351,2]
[403135721,1769184640831,-500.0,0.00017351,2]
[403135722,1769184640841,-500.0,0.00017351,2]
[403135723,1769184640851,-500.0,0.00017351,2]
[403135724,1769184640861,-1201.93776223,0.00017395,2]
[403135725,1769184640873,-3112.00948139,0.00017404,2]
[403135726,1769184640884,-691.75,0.00017434,2]
[403135727,1769184640895,-1677.0,0.00017448,2]
[403135728,1769184640905,-1201.93776223,0.00017467,2]
[403135729,1769184640915,-158.65816027,0.00017469,2]
[403135730,1769184640924,-1677.0,0.00017517,2]
[403135731,1769184640934,-979.75432874,0.00017533,2]
[403135732,1769184640943,-10032.71121087,0.00017534,2]
[403135733,1769184640955,-1201.93776223,0.00017539,2]
[403135734,1769184640964,-259.06042504,0.0001754,2]
[403135735,1769184640974,-1677.0,0.00017544,2]
[403135736,1769184640984,-836.0,0.00017553,2]
[403135737,1769184640994,-3112.00948139,0.0001757,2]
[403135738,1769184641003,-1201.93776223,0.00017612,2]
[403135739,1769184641012,-150.0,0.00017615,2]
[403135740,1769184641022,-412.69872732,0.00017632,2]
[403135741,1769184641033,-500.0,0.00017632,2]
[403135742,1769184641042,-500.0,0.00017632,2]
[403135743,1769184641051,-165.97106181,0.00017632,2]
[403135744,1769184641061,-500.0,0.00017632,2]
[403135745,1769184641071,-646.91101847,0.00017632,2]
[403135746,1769184641081,-500.0,0.00017632,2]
[403135747,1769184641091,-500.0,0.00017632,2]
[403135748,1769184641102,-500.0,0.00017632,2]
[403135749,1769184641110,-500.0,0.00017632,2]
[403135750,1769184641120,-500.0,0.00017632,2]
[403135751,1769184641129,-500.0,0.00017632,2]
[403135752,1769184641138,-500.0,0.00017632,2]
[403135753,1769184641148,-500.0,0.00017632,2]
[403135754,1769184641157,-500.0,0.00017632,2]
[403135755,1769184641167,-500.0,0.00017632,2]
[403135756,1769184641176,-500.0,0.00017632,2]
[403135757,1769184641185,-500.0,0.00017632,2]
[403135758,1769184641195,-500.0,0.00017632,2]
[403135759,1769184641204,-500.0,0.00017632,2]
[403135760,1769184641213,-500.0,0.00017632,2]
[403135761,1769184641222,-500.0,0.00017632,2]
[403135762,1769184641231,-500.0,0.00017632,2]
[403135763,1769184641241,-500.0,0.00017632,2]
[403135764,1769184641250,-531.48950376,0.00017632,2]
[403135765,1769184641259,-231.10435415,0.00017632,2]
[403135766,1769184641268,-298.18754647,0.00017632,2]
[403135767,1769184641278,-1000000.0,0.00017633,2]
[403135768,1769184641287,-487.0,0.00017633,2]
[403135769,1769184641296,-487.0,0.00017633,2]
[403135770,1769184641306,-487.0,0.00017633,2]
[403135771,1769184641315,-487.0,0.00017633,2]
[403135772,1769184641324,-487.0,0.00017633,2]
[403135773,1769184641335,-487.0,0.00017633,2]
[403135774,1769184641344,-487.0,0.00017633,2]
[403135775,1769184641354,-746.88,0.00017633,2]
[403135776,1769184641364,-1677.0,0.00017658,2]
[403135777,1769184641374,-1201.93776223,0.00017684,2]
[403135778,1769184641385,-345.45084823,0.00017707,2]
[403135779,1769184641394,-691.75,0.00017708,2]
[403135780,1769184641405,-1000.0,0.00017733,2]
[403135781,1769184641415,-1677.0,0.00017734,2]
[403135782,1769184641425,-1000.0,0.00017734,2]
[403135783,1769184641435,-1000.0,0.00017734,2]
[403135784,1769184641444,-3112.00948139,0.00017735,2]
[403135785,1769184641454,-1000.0,0.00017742,2]
[403135786,1769184641463,-1000.0,0.00017745,2]
[403135787,1769184641473,-1201.93776223,0.00017756,2]
[403135788,1769184641482,-1677.0,0.00017781,2]
[403135789,1769184641492,-1000.0,0.00017783,2]
[403135790,1769184641502,-1000.0,0.00017795,2]
[403135791,1769184641511,-1000.0,0.00017806,2]
[403135792,1769184641522,-1000.0,0.00017813,2]
[403135793,1769184641532,-1000.0,0.0001782,2]
[403135794,1769184641542,-1201.93776223,0.00017828,2]
[403135795,1769184641551,-1000.0,0.00017836,2]
[403135796,1769184641561,-1000.0,0.00017844,2]
[403135797,1769184641571,-1000.0,0.00017849,2]
[403135798,1769184641580,-1677.0,0.00017858,2]
[403135799,1769184641589,-1000.0,0.00017862,2]
[403135800,1769184641599,-1000.0,0.00017862,2]
[403135801,1769184641610,-1000.0,0.00017876,2]
[403135802,1769184641620,-1000.0,0.00017881,2]
[403135803,1769184641630,-1000.0,0.00017886,2]
[403135804,1769184641639,-1000.0,0.00017898,2]
[403135805,1769184641649,-807.40319455,0.00017899,2]
[403135806,1769184641660,-336.21539799,0.00017899,2]
[403135807,1769184641671,-181.08010149,0.00017899,2]
[403135808,1769184641684,-151.0,0.00017899,2]
[403135809,1769184641694,-476.1098,0.000179,2]
[403135810,1769184641703,-1000.0,0.000179,2]
[403135811,1769184641713,-3112.00948139,0.000179,2]
[403135812,1769184641725,-1201.93776223,0.000179,2]
[403135813,1769184641735,-3017.63166672,0.000179,2]
[403135814,1769184641745,-1000.0,0.00017905,2]
[403135815,1769184641757,-1000.0,0.00017913,2]
[403135816,1769184641766,-1677.0,0.00017915,2]
[403135817,1769184641775,-1000.0,0.00017919,2]
[403135818,1769184641785,-1000.0,0.00017923,2]
[403135819,1769184641794,-1680.0,0.00017936,2]
[403135820,1769184641803,-1000.0,0.00017943,2]
[403135821,1769184641811,-1000.0,0.00017945,2]
[403135822,1769184641821,-1000.0,0.00017958,2]
[403135823,1769184641830,-1677.0,0.00017962,2]
[403135824,1769184641839,-1000.0,0.00017963,2]
[403135825,1769184641848,-467.29689224,0.00017966,2]
[403135826,1769184641857,-1677.0,0.00017969,2]
[403135827,1769184641866,-1000.0,0.00017971,2]
[403135828,1769184641875,-200.0,0.00017973,2]
[403135829,1769184641885,-691.75,0.00017982,2]
[403135830,1769184641894,-1000.0,0.0001799,2]
[403135831,1769184641903,-1000.0,0.00017993,2]
[403135832,1769184641912,-10726.7553004,0.00017995,2]
[403135833,1769184641921,-61268.1044392,0.00017995,2]
[403135834,1769184641931,-92477.2623743,0.00017995,2]
[403135835,1769184641939,-151.0,0.00017997,2]
[403135836,1769184641948,-151.0,0.00017997,2]
[403135837,1769184641957,-500.0,0.00017999,2]
[403135838,1769184641967,-500.0,0.00017999,2]
[403135839,1769184641976,-500.0,0.00017999,2]
[403135840,1769184641985,-380.69489282,0.00017999,2]
[403135841,1769184641995,-3452406.54656015,0.00018,2]
[403135842,1769184642404,-707.82344134,0.00018,2]
[403135843,1769184642415,-496.6280388,0.00018,2]
[403135844,1769184642426,-537.42,0.00018,2]
[403135845,1769184642436,-5300.19595435,0.00018,2]
[403135846,1769184642447,-2432.75201938,0.00018,2]
[403135847,1769184642458,-829.99324617,0.00018,2]
[403135848,1769184642509,-2969.47351155,0.00018,2]
[403135849,1769184642521,-5694.9888,0.00018,2]
[403135850,1769184642532,-614.54209963,0.00018,2]
[403135854,1769184643019,-1670.25,0.00018,2]
[403135855,1769184643031,-525.16036174,0.00018,2]
[403135856,1769184643043,-5261.13706738,0.00018,2]
[403135857,1769184643054,-663.90413081,0.00018,2]
[403135858,1769184643068,-590.9981233,0.00018,2]
[403135859,1769184643079,-284857.18140453,0.00018,2]
[403135860,1769184643090,-999.0,0.00018,2]
[403135861,1769184643100,-17348.64239125,0.00018,2]
[403135862,1769184643113,-38177.95078409,0.00018,2]
[403135863,1769184643123,-298.14479499,0.00018,2]
[403135864,1769184643141,-280.28078715,0.00018,2]
[403135865,1769184643152,-1091.566251,0.00018,2]
[403135866,1769184643162,-258.6914863,0.00018,2]
[403135867,1769184643173,-19187.0,0.00018,2]
[403135868,1769184643236,-40932.31453005,0.00018,2]
[403135869,1769184643247,-519.56113632,0.00018,2]
[403135870,1769184643258,-618.16586704,0.00018,2]
[403135871,1769184643269,-4979.76509798,0.00018,2]
[403135874,1769184645036,-500.0,0.00016337,2]
[403135875,1769184645046,-287.95251491,0.00016337,2]
[403135876,1769184645055,-500.0,0.00016337,2]
[403135877,1769184645064,-372.14652407,0.00016337,2]
[403135878,1769184645425,-127.85347593,0.00016337,2]
[403135879,1769184645435,-172.7157842,0.00016337,2]
[403135880,1769184645444,-500.0,0.00016337,2]
[403135881,1769184645453,-191.16131222,0.00016438,2]
[403135883,1769184645463,-644.18690496,0.00018,2]
[403135885,1769184645476,-3848.7698784,0.00018,2]
[403135886,1769184645490,-539.81210052,0.00018,2]
[403135887,1769184645501,-44841.66862929,0.00018,2]
[403135908,1769184645989,-5635.33765194,0.00018,2]
[403136024,1769184647379,-64828.5564216,0.00018,2]
[403136025,1769184647389,-500.0,0.00018,2]
[403136026,1769184647400,-200.0,0.00018,2]
[403136027,1769184647411,-203850.42815904,0.00018,2]
[403136028,1769184647423,-917.6046059,0.00018,2]
[403136029,1769184647435,-1723.75187458,0.00018,2]
[403136030,1769184693069,3684.10981892,0.00015913,2]
[403136032,1769184878779,7099.0,0.00013,2]
[403136033,1769184912588,2901.01,0.00013,2]
[403136034,1769184912687,10000.01,0.00013,2]
[403136035,1769184912786,10000.01,0.00013,2]
[403136036,1769184912888,10000.01,0.00013,2]
[403136037,1769184912984,10000.01,0.00013,2]
[403136038,1769184913083,10000.01,0.00013,2]
[403136039,1769184913176,10000.01,0.00013,2]
[403136040,1769184913271,10000.01,0.00013,2]
[403136041,1769184913368,10000.01,0.00013,2]
[403136042,1769184913460,10000.01,0.00013,2]
[403136043,1769184913496,7098.9,0.00013,2]
[403136044,1769185125374,8356.6,0.00012792,2]
[403136046,1769185536203,1643.41,0.0001,2]
[403136047,1769185536307,3629.05458787,0.0001,2]
[403136048,1769185560785,6370.95541213,8e-05,2]
[403136049,1769185560879,10000.01,8e-05,2]
[403136050,1769185560973,337.4753764,8e-05,2]
[403136051,1769185564993,9428.25714968,0.00011,2]
[403136052,1769185568391,229.48825,7.945e-05,2]
[403136053,1769185631186,4.78922392,9.8e-05,2]
[403136054,1769185631275,200.21077608,9.8e-05,2]
[403136055,1769185634883,1523.80641616,0.0001305,2]
[403136056,1769185635188,259.90891829,0.000101,2]
[403136058,1769185689170,1000.0,0.000135,2]
[403136059,1769185689289,307.57550984,0.000125,2]
[403136061,1769185710537,268.37165244,0.000107,2]
[403136062,1769185717475,6440.13672719,0.0001,2]
[403136063,1769185717561,5596.39686615,0.0001,2]
[403136086,1769185832171,-3728.97322002,0.0001439,2]
[403136087,1769185832181,-269.0,0.0001439,2]
[403136088,1769185832190,-300.0,0.00014695,2]
[403136089,1769185832202,-195.0,0.00014695,2]
[403136090,1769185832211,-300.0,0.00014999,2]
[403136091,1769185832221,-1200.0,0.00014999,2]
[403136092,1769185832231,-300.0,0.00014999,2]
[403136093,1769185832241,-6209.1915295,0.00015,2]
[403136094,1769185832251,-10560.9878295,0.00015,2]
[403136095,1769185832260,-195.0,0.00015043,2]
[403136096,1769185832270,-9701.03693089,0.000152,2]
[403136097,1769185832279,-507.99464002,0.000154,2]
[403136098,1769185832289,-150.0,0.00015425,2]
[403136099,1769185832298,-1000.0,0.00015474,2]
[403136100,1769185832308,-157.41,0.00015507,2]
[403136101,1769185832318,-200.0,0.0001557,2]
[403136102,1769185832328,-883.67,0.00015656,2]
[403136103,1769185832338,-193.10964488,0.00015807,2]
[403136105,1769185832348,-686.0,0.00015817,2]
[403136107,1769185832358,-254.0,0.00015817,2]
[403136109,1769185832368,-250.0,0.00015829,2]
[403136111,1769185832377,-150.0,0.00015829,2]
[403136113,1769185832387,-250.0,0.00015829,2]
[403136115,1769185832396,-2500.0,0.00015829,2]
[403136117,1769185832405,-302.2191889,0.00015829,2]
[403136119,1769185832415,-300.0,0.00015829,2]
[403136121,1769185832424,-600.0,0.00015829,2]
[403136122,1769185832434,-195.0,0.00015829,2]
[403136123,1769185832443,-475.0,0.00015848,2]
[403136125,1769185832454,-430.0,0.0001588,2]
[403136127,1769185832463,-67.18851629,0.00015889,2]
[403136128,1769185832517,-200.2400128,0.00015889,2]
[403136129,1769185832533,-267.42852908,0.00015894,2]
[403136130,1769185832544,-267.42852908,0.00015898,2]
[403136131,1769185832554,-152.32567294,0.00015899,2]
[403136132,1769185832563,-161.85,0.00015908,2]
[403136133,1769185832573,-585.18,0.00015918,2]
[403136134,1769185832583,-245.0,0.00015962,2]
[403136135,1769185832592,-150.0,0.00015963,2]
[403136136,1769185832602,-150.0,0.00015963,2]
[403136137,1769185832611,-62.20629196,0.00015963,2]
[403136138,1769185832623,-271.90586894,0.00015963,2]
[403136139,1769185832634,-165.8878391,0.00015963,2]
[403136140,1769185832644,-141.66284577,0.00015963,2]
[403136141,1769185832668,-8.33715423,0.00015963,2]
[403136142,1769185832677,-150.0,0.00015963,2]
[403136143,1769185832688,-150.0,0.00015963,2]
[403136144,1769185832697,-150.0,0.00015963,2]
[403136145,1769185832707,-150.0,0.00015963,2]
[403136146,1769185832716,-292.78284577,0.00015963,2]
[403136147,1769185832727,-207.21715423,0.00015963,2]
[403136148,1769185832738,-150.0,0.00015963,2]
[403136149,1769185832747,-150.0,0.00015963,2]
[403136150,1769185832757,-150.0,0.00015963,2]
[403136151,1769185832766,-1000.0,0.00015989,2]
[403136152,1769185832776,-5332.08352294,0.0001599,2]
[403136153,1769185832789,-11335.48892044,0.0001599,2]
[403136154,1769185838210,-323.47864136,0.0001599,2]
[403136155,1769185838221,-288.2477619,0.0001599,2]
[403136156,1769185838232,-1299.6783957,0.0001599,2]
[403136157,1769185838245,-407.50653625,0.0001599,2]
[403136158,1769185838256,-578.79151393,0.0001599,2]
[403136159,1769185838268,-2039.74898413,0.0001599,2]
[403136161,1769185838279,-509.15197603,0.0001599,2]
[403136162,1769185838294,-116395.35139791,0.0001599,2]
[403136164,1769185838303,-500.0,0.00015999,2]
[403136165,1769185838312,-150.0,0.00016018,2]
[403136167,1769185838321,-500.0,0.00016018,2]
[403136168,1769185838331,-150.0,0.00016018,2]
[403136169,1769185838340,-150.0,0.00016018,2]
[403136170,1769185838349,-150.0,0.00016018,2]
[403136171,1769185838359,-500.0,0.00016018,2]
[403136172,1769185838368,-193.25248034,0.00016018,2]
[403136173,1769185838377,-166.77063217,0.00016043,2]
[403136174,1769185838386,-150.0,0.00016043,2]
[403136175,1769185838395,-500.0,0.00016043,2]
[403136176,1769185838405,-150.0,0.00016043,2]
[403136177,1769185838413,-150.0,0.00016043,2]
[403136178,1769185838422,-150.0,0.00016043,2]
[403136180,1769185838432,-150.0,0.00016043,2]
[403136183,1769185838441,-150.0,0.00016043,2]
[403136184,1769185838451,-150.0,0.00016043,2]
[403136186,1769185838460,-150.0,0.00016073,2]
[403136188,1769185838470,-500.0,0.00016073,2]